bitfinex-derivatives/quotes_ETHF0:USTF0_20251117
["timestamp","ask_amount","ask_price","bid_price","bid_amount"]
[1763368216129,0.2489,3199.1,3199.0,0.1494]
[1763368216636,0.7557,3199.1,3199.0,0.1494]
[1763368217425,0.2489,3199.1,3199.0,0.1494]
[1763368217626,0.93913219,3199.3,3199.2,0.2424]
[1763368218328,0.2306,3199.3,3199.2,0.2424]
[1763368218531,0.71189809,3199.5,3199.4,0.2424]
[1763368218726,0.0033659,3199.5,3199.4,0.2424]
[1763368220030,0.2351659,3199.5,3199.4,0.2424]
[1763368220330,0.2318,3199.1,3199.0,0.3981]
[1763368220736,3.2890659,3199.5,3198.5,0.3981]
[1763368220737,0.2318,3198.6,3198.5,0.3981]
[1763368221134,0.2318,3198.6,3198.5,0.1494]
[1763368221342,0.73875,3198.2,3198.1,1.91181741]
[1763368221638,0.2318,3198.2,3198.1,0.2487]
[1763368224931,3.2078,3198.6,3198.1,0.2487]
[1763368225236,0.93966685,3198.5,3198.4,0.2487]
[1763368225834,0.93966685,3198.5,3198.0,0.1446]
[1763368226030,0.2318,3198.1,3198.0,0.3933]
[1763368227139,0.2318,3198.0,3197.9,3.2078]
[1763368227333,0.3439,3198.0,3197.9,3.2078]
[1763368227534,0.85088,3198.0,3197.9,3.2078]
[1763368227737,0.2318,3197.9,3197.8,0.0032531]
[1763368228741,0.50698,3198.0,3197.9,0.2487]
[1763368228945,0.73878,3198.0,3197.9,0.2487]
[1763368229140,0.2318,3197.9,3197.8,0.0032531]
[1763368229539,0.2318,3197.9,3197.8,0.2519531]
[1763368230643,0.73879,3197.9,3197.8,0.2519531]
[1763368230938,0.73879,3197.9,3197.8,0.0032531]
[1763368232041,0.50699,3197.9,3197.8,0.2519531]
[1763368232243,0.2318,3197.9,3197.8,0.2519531]
[1763368232542,0.73879,3197.9,3197.8,0.2519531]
[1763368233144,0.2318,3197.9,3197.8,0.2519531]
[1763368233646,3.2078,3198.1,3198.0,0.3984]
[1763368233847,3.2078,3198.6,3198.0,0.3984]
[1763368234044,0.2318,3198.5,3198.4,0.2487]
[1763368234242,0.73871,3198.5,3198.0,0.1497]
[1763368234743,0.2318,3198.5,3198.4,0.2487]
[1763368235245,0.0033659,3199.5,3199.4,0.2487]
[1763368235448,3.2078,3199.8,3199.5,0.3984]
[1763368235843,3.2078,3199.8,3199.2,0.0046905]
[1763368235844,0.2318,3199.3,3199.2,0.2533905]
[1763368236044,3.2078,3199.8,3199.2,0.2533905]
[1763368236351,0.24017972,3199.6,3199.5,0.1497]
[1763368236544,0.24017972,3199.6,3199.5,0.3984]
[1763368237446,0.74690972,3199.6,3199.2,0.0046905]
[1763368237947,0.24017972,3199.6,3199.2,0.0046905]
[1763368238139,0.24017972,3199.6,3199.5,0.3984]
[1763368238749,0.00837972,3199.6,3199.5,0.3984]
[1763368241645,0.24017972,3199.6,3199.5,0.3984]
[1763368242654,0.00837972,3199.6,3199.5,0.3984]
[1763368243253,0.24017972,3199.6,3199.5,0.3984]
[1763368244558,0.00837972,3199.6,3199.5,0.3984]
[1763368245254,0.24017972,3199.6,3199.5,0.3984]
[1763368246356,0.2318,3199.5,3199.4,3.2078]
[1763368246757,0.2318,3199.3,3199.2,0.0046905]
[1763368248261,0.2318,3199.3,3199.2,0.2533905]
[1763368249162,0.2269,3199.3,3199.2,0.0046905]
[1763368249351,0.73367,3199.3,3199.2,0.0046905]
[1763368250659,0.73365,3199.5,3199.4,0.2381]
[1763368251762,0.2269,3199.3,3199.2,0.2427905]
[1763368251959,0.73367,3199.3,3199.2,0.0046905]
[1763368252356,0.2269,3199.3,3199.2,0.2427905]
[1763368253761,0.73367,3199.3,3199.2,0.2427905]
[1763368254164,0.50675,3199.5,3199.2,0.2427905]
[1763368254463,0.73365,3199.5,3199.4,0.2381]
[1763368255854,0.2269,3199.3,3199.2,0.2427905]
[1763368256055,0.73367,3199.3,3199.2,0.2427905]
[1763368256761,0.2269,3199.3,3199.2,0.2427905]
[1763368257568,0.73367,3199.3,3199.2,0.2427905]
[1763368258166,0.2269,3199.3,3199.2,0.2427905]
[1763368260375,0.73367,3199.3,3199.2,0.0046905]
[1763368260772,1.44087098,3199.3,3199.2,0.0046905]
[1763368262472,1.44087098,3199.3,3198.5,3.3575]
[1763368262473,0.73378,3198.6,3198.5,3.3575]
[1763368262775,0.1426,3198.1,3198.0,1.83058583]
[1763368262962,0.1426,3198.1,3198.0,0.1497]
[1763368263377,0.1426,3198.1,3198.0,0.3878]
[1763368263872,0.50693,3198.3,3198.2,0.2381]
[1763368264065,0.64953,3198.3,3198.2,0.2381]
[1763368264262,0.1426,3198.1,3198.0,0.3878]
[1763368264673,0.71242877,3198.5,3198.0,0.3878]
[1763368265373,0.71242877,3198.5,3198.0,0.1497]
[1763368265673,3.71468,3198.6,3198.5,0.385]
[1763368265870,3.3504,3198.6,3198.5,0.385]
[1763368266175,3.3504,3198.6,3198.5,0.1469]
[1763368266374,3.3504,3198.6,3198.5,0.385]
[1763368266674,3.2078,3198.6,3198.5,0.385]
[1763368266866,3.3504,3198.6,3198.5,0.1469]
[1763368269068,3.3504,3198.6,3198.5,0.385]
[1763368269576,3.85728,3198.6,3198.5,0.385]
[1763368269778,3.3504,3198.6,3198.5,0.385]
[1763368269976,3.2078,3198.6,3198.5,0.385]
[1763368270574,0.1426,3199.1,3199.0,0.385]
[1763368270778,1.36086622,3199.1,3199.0,0.1469]
[1763368271169,0.50684,3198.9,3198.5,0.1469]
[1763368271774,3.2078,3199.2,3198.5,0.1469]
[1763368271975,0.50685,3198.8,3198.5,0.1469]
[1763368272475,0.50684,3198.9,3198.5,0.1469]
[1763368272672,0.1426,3198.6,3198.5,0.1469]
[1763368272871,0.1426,3198.6,3198.5,0.385]
[1763368273066,0.64948,3198.6,3198.5,0.385]
[1763368273267,0.64948,3198.6,3198.5,0.1469]
[1763368273468,0.1426,3198.1,3198.0,3.5956]
[1763368273673,0.50693,3198.4,3198.0,3.5956]
[1763368273880,0.64953,3198.4,3198.3,0.2381]
[1763368274072,0.50694,3198.3,3198.0,3.3575]
[1763368274273,0.1426,3198.1,3198.0,3.5956]
[1763368276979,0.50695,3198.2,3198.0,3.5956]
[1763368277175,0.64925,3198.2,3198.1,0.2381]
[1763368277771,0.1423,3198.1,3198.0,3.3575]
[1763368278274,0.1423,3198.1,3198.0,3.6036]
[1763368278582,0.64922,3198.4,3198.3,0.2461]
[1763368282072,0.5069,3198.5,3198.4,0.2378]
[1763368282280,3.85715,3198.8,3198.7,0.2378]
[1763368282478,4.56898395,3198.8,3198.7,0.2378]
[1763368282678,4.06213395,3198.8,3198.7,0.2378]
[1763368283288,0.50694,3198.3,3198.0,3.3575]
[1763368283485,0.50692,3198.4,3198.0,3.3575]
[1763368284084,0.64946,3198.2,3198.1,0.2378]
[1763368284387,0.1425,3197.9,3197.8,0.2410531]
[1763368285288,0.64949,3197.9,3197.8,0.2410531]
[1763368285481,0.64949,3197.9,3197.8,0.0032531]
[1763368285681,0.64962,3197.1,3197.0,0.1469]
[1763368286885,0.6520497,3197.1,3197.0,0.14927157]
[1763368287286,0.6520497,3197.1,3197.0,0.00237157]
[1763368288687,0.1449297,3197.1,3197.0,0.38467157]
[1763368289282,0.0024297,3197.1,3197.0,0.38467157]
[1763368289490,0.1449297,3197.1,3197.0,0.00237157]
[1763368291289,0.1449297,3197.1,3197.0,0.14687157]
[1763368292099,0.1449297,3197.1,3197.0,0.38467157]
[1763368292298,0.0024297,3197.1,3197.0,0.38467157]
[1763368292792,0.1449297,3197.1,3197.0,0.38467157]
[1763368292990,0.1449297,3197.1,3197.0,0.14687157]
[1763368293392,0.1449297,3197.1,3197.0,0.38467157]
[1763368296499,0.1449297,3197.1,3197.0,0.00237157]
[1763368297088,0.1449297,3197.1,3196.5,3.3523]
[1763368297089,0.6474,3196.6,3196.5,0.1445]
[1763368297395,0.64747,3196.2,3196.1,0.2378]
[1763368297594,3.85527,3196.2,3196.1,0.2378]
[1763368298099,3.85527,3196.2,3196.1,0.24183909]
[1763368298794,3.348,3196.2,3196.1,0.24183909]
[1763368299205,0.1361,3195.6,3194.4,1.4912811]
[1763368299387,0.1361,3195.6,3193.3,5.61652621]
[1763368299388,3.2078,3194.0,3193.0,2.79612646]
[1763368299593,0.7083719,3193.9,3193.0,0.1445]
[1763368299795,1.11369154,3193.3,3190.0,40.8]
[1763368299993,0.50776,3193.1,3193.0,0.1445]
[1763368300292,0.7083719,3193.1,3193.0,0.3847737]
[1763368300500,2.864e-05,3193.1,3193.0,0.3847737]
[1763368302498,2.864e-05,3193.1,3193.0,6.3847737]
[1763368303002,3.2078,3193.8,3193.7,0.2378]
[1763368303893,3.21152481,3193.8,3193.7,0.2378]
[1763368304802,3.21152481,3193.8,3193.5,0.1445]
[1763368305096,0.50766,3193.7,3193.5,0.1445]
[1763368307304,3.21152481,3193.8,3193.7,0.2378]
[1763368309009,2.481e-05,3193.8,3193.7,0.2378]
[1763368309412,2.481e-05,3193.8,3193.7,6.2378]
[1763368310615,3.2078,3194.9,3194.5,0.3701]
[1763368310802,1.11369154,3195.3,3195.1,0.2328]
[1763368311111,3.2078,3195.6,3195.2,0.2328]
[1763368311503,0.5074,3195.4,3195.2,0.2328]
[1763368312312,4.32398052,3195.6,3195.2,0.74022]
[1763368312504,4.32398052,3195.6,3195.4,0.2328]
[1763368312505,0.8470455,3195.5,3195.4,0.2328]
[1763368312705,0.8470455,3195.5,3195.4,0.23659926]
[1763368313105,1.0900455,3195.5,3195.4,0.00379926]
[1763368313707,0.8470455,3195.5,3195.4,0.23659926]
[1763368314015,0.8470455,3195.5,3195.4,0.74398926]
[1763368314507,0.8470455,3195.5,3195.4,0.23659926]
[1763368316202,1.0900455,3195.5,3195.4,0.00379926]
[1763368318910,0.243,3195.2,3194.5,3.5779]
[1763368319119,0.50746,3195.0,3194.9,0.2328]
[1763368319310,0.50747,3194.9,3194.5,0.3701]
[1763368319616,0.8470455,3194.8,3194.7,0.2328]
[1763368319807,0.8470455,3194.8,3194.7,0.2351677]
[1763368320007,1.3545055,3195.0,3194.7,0.2351677]
[1763368320209,0.8470455,3194.9,3194.8,0.2328]
[1763368322011,3.45328898,3195.6,3195.5,0.6029]
[1763368322221,4.28971658,3195.6,3195.5,0.6029]
[1763368322603,4.04671658,3195.6,3195.5,0.6029]
[1763368322807,4.28971658,3195.6,3195.5,0.6029]
[1763368323612,0.83891658,3195.6,3195.5,0.6029]
[1763368323813,0.00248898,3195.6,3195.5,0.6029]
[1763368324217,0.83891658,3195.6,3195.5,0.6029]
[1763368324416,1.08191658,3195.6,3195.0,0.3701]
[1763368324712,0.8364276,3195.5,3195.0,0.3701]
[1763368324912,0.8364276,3195.4,3195.3,0.2328]
[1763368325105,1.0794276,3195.4,3195.3,0.2328]
[1763368325518,0.8364276,3195.4,3195.3,0.2328]
[1763368325717,1.0794276,3195.4,3195.3,0.2328]
[1763368326609,0.8364276,3195.4,3195.3,0.2328]
[1763368327610,0.8364276,3195.4,3195.3,0.74021]
[1763368328114,0.243,3195.3,3195.1,0.50744]
[1763368328415,0.8364276,3195.2,3195.1,0.74024]
[1763368328611,1.3438476,3195.2,3195.1,0.74024]
[1763368329317,0.8364276,3195.2,3195.1,0.74024]
[1763368329920,0.243,3195.1,3195.0,0.3701]
[1763368330111,1.0794276,3195.1,3195.0,0.87755]
[1763368330418,1.0794276,3195.1,3195.0,0.3701]
[1763368330625,0.50746,3195.0,3194.8,0.50748]
[1763368330818,1.0794276,3194.9,3194.8,0.50748]
[1763368331613,1.0794276,3194.9,3194.7,0.0023677]
[1763368331614,0.75049,3194.8,3194.7,0.0023677]
[1763368331920,4.7947176,3194.8,3194.7,0.0023677]
[1763368332918,0.75053,3194.5,3194.4,0.00469822]
[1763368333121,2.19007866,3194.5,3194.4,0.00469822]
[1763368333319,2.19007866,3194.5,3194.4,0.23749822]
[1763368333622,2.69760866,3194.5,3194.4,0.00469822]
[1763368333823,2.69760866,3194.5,3194.4,0.00808095]
[1763368334327,2.19007866,3194.5,3194.4,0.00808095]
[1763368334514,2.69760866,3194.5,3194.4,0.00808095]
[1763368334714,3.08920866,3194.5,3194.4,0.00808095]
[1763368334914,1.9785576,3194.5,3194.4,0.00808095]
[1763368335312,3.66217255,3194.5,3194.4,0.00808095]
[1763368336115,1.9785576,3194.5,3194.4,0.00808095]
[1763368336622,0.50763,3193.9,3193.5,0.3701]
[1763368336925,0.8364276,3193.8,3193.5,0.3701]
[1763368337124,0.8364276,3193.7,3193.6,0.2328]
[1763368337726,0.8364276,3193.7,3193.6,0.23673887]
[1763368337916,2.76e-05,3193.7,3193.6,6.23673887]
[1763368338116,2.76e-05,3193.7,3193.6,0.23673887]
[1763368339316,0.00469822,3194.0,3193.9,0.6337]
[1763368341019,0.00469822,3194.0,3193.9,3.8415]
[1763368343229,0.00469822,3194.0,3193.9,9.8415]
[1763368343625,4.31979884,3194.8,3194.0,0.3809]
[1763368343829,4.82728884,3194.8,3194.0,0.3809]
[1763368344428,3.2078,3194.8,3194.0,0.3809]
[1763368344730,0.00469822,3194.7,3194.6,0.6486]
[1763368348331,0.6137,3194.5,3194.4,0.6486]
[1763368348532,0.00469822,3194.7,3194.6,0.6486]
[1763368353336,0.82428331,3195.4,3195.3,0.6486]
[1763368353631,0.6137,3195.5,3195.4,0.6486]
[1763368353826,1.43814514,3195.5,3195.4,0.6486]
[1763368354033,0.6137,3195.1,3194.7,3.2078]
[1763368354536,0.00469822,3195.2,3195.1,0.6486]
[1763368355437,0.61839822,3195.2,3195.1,0.6486]
[1763368356234,0.6137,3195.4,3195.3,0.6486]
[1763368356434,1.42711719,3195.4,3195.3,0.6486]
[1763368357331,1.43085501,3195.4,3195.3,1.15601]
[1763368357531,0.81715501,3195.4,3195.3,1.15601]
[1763368357833,0.00373782,3195.4,3195.3,1.15601]
[1763368358842,0.61743782,3195.4,3195.3,1.15601]
[1763368360531,0.00373782,3195.4,3195.3,1.15601]
[1763368360731,0.61743782,3195.4,3195.3,1.15601]
[1763368361032,0.00373782,3195.4,3195.3,1.15601]
[1763368364633,0.61743782,3195.4,3195.3,0.50741]
[1763368364834,0.6137,3195.3,3195.2,3.8564]
[1763368365532,0.3921,3195.0,3194.6,3.2078]
[1763368365732,0.6137,3194.7,3194.6,3.8564]
[1763368366436,0.6137,3194.6,3194.2,3.2078]
[1763368367741,0.6137,3194.6,3194.5,0.6486]
[1763368367935,0.6137,3194.6,3194.5,1.0295]
[1763368368144,0.6137,3194.6,3194.5,0.6486]
[1763368369244,0.6137,3194.6,3194.5,1.0458]
[1763368369444,0.6137,3194.6,3194.5,0.6486]
[1763368369942,1.16267,3194.9,3194.8,0.6424]
[1763368370137,0.6552,3194.6,3194.5,1.0396]
[1763368370442,0.6552,3194.6,3194.2,3.2078]
[1763368370844,0.6552,3194.3,3194.2,3.8502]
[1763368372038,0.6552,3195.0,3194.9,0.6424]
[1763368372238,4.87579827,3195.3,3195.1,0.6424]
[1763368372239,1.46222758,3195.2,3195.1,0.6424]
[1763368372435,1.96980585,3195.2,3194.7,3.2078]
[1763368372632,0.6552,3194.8,3194.7,0.6424]
[1763368372838,1.16269,3194.8,3194.7,0.6424]
[1763368373042,0.6552,3194.6,3194.5,1.0396]
[1763368373342,0.6552,3194.4,3194.3,3.2078]
[1763368373550,1.16275,3194.4,3194.3,3.2078]
[1763368373738,1.96717177,3194.4,3194.3,3.2078]
[1763368374239,1.16278,3194.2,3193.6,0.00393887]
[1763368374439,1.96720177,3194.2,3193.6,0.00393887]
[1763368374647,1.16286,3193.7,3193.6,0.00393887]
[1763368375139,0.6552,3193.7,3193.6,0.00393887]
[1763368375444,1.45962177,3193.7,3193.6,0.00393887]
[1763368375945,4.12250822,3194.0,3193.6,0.64633887]
[1763368376142,0.8018511,3193.9,3193.6,0.64633887]
[1763368376849,0.6552,3193.7,3193.6,0.64633887]
[1763368378141,0.00469822,3194.0,3193.6,0.64633887]
[1763368378340,0.65989822,3194.0,3193.9,0.6424]
[1763368378546,0.6552,3193.7,3193.6,0.00393887]
[1763368378945,1.4564207,3193.7,3193.6,0.00393887]
[1763368379946,0.6552,3193.0,3192.9,3.2078]
[1763368380145,1.0473,3193.0,3192.9,3.2078]
[1763368380344,0.50772,3193.4,3192.9,3.8502]
[1763368380549,0.90619,3193.5,3193.0,0.3972]
[1763368380749,0.3985,3193.5,3193.0,0.3972]
[1763368380943,0.40113125,3193.5,3193.0,0.40009679]
[1763368381245,0.50773,3193.3,3193.0,0.40009679]
[1763368381451,1.0473,3193.0,3192.9,0.00469822]
[1763368381746,1.84633936,3193.0,3192.9,0.00469822]
[1763368382448,0.6552,3193.0,3192.9,0.65058518]
[1763368382645,0.90883125,3193.5,3192.9,3.85838518]
[1763368382845,0.6552,3193.4,3193.3,0.6424]
[1763368383349,0.6552,3193.4,3193.0,0.3972]
[1763368384049,0.00263125,3193.5,3193.4,0.6424]
[1763368384243,0.65783125,3193.5,3193.4,0.6424]
[1763368384456,0.6552,3193.1,3192.9,3.21598518]
[1763368384752,0.6552,3193.0,3192.9,3.21598518]
[1763368385344,0.6552,3193.0,3192.9,3.85838518]
[1763368385547,0.89853125,3193.5,3193.0,0.3972]
[1763368385751,0.50771,3193.4,3193.0,0.3972]
[1763368386050,0.89852125,3193.5,3193.0,0.3972]
[1763368386353,0.00263125,3193.5,3193.4,3.8502]
[1763368386549,0.6552,3193.1,3193.0,3.2078]
[1763368388056,1.0576,3192.5,3191.9,0.25737176]
[1763368388252,0.6552,3192.5,3191.9,0.25737176]
[1763368388748,1.16305,3192.5,3191.9,0.25737176]
[1763368388952,1.16305,3192.5,3192.0,0.39988741]
[1763368389153,0.6552,3192.5,3192.0,0.39988741]
[1763368389448,0.6552,3192.5,3192.4,0.6424]
[1763368390156,0.6552,3192.5,3192.0,0.39988741]
[1763368390756,0.6552,3192.5,3192.4,0.6424]
[1763368390958,3.2078,3192.7,3192.4,0.6424]
[1763368391161,0.50787,3192.4,3192.0,0.39988741]
[1763368391355,0.4024,3192.5,3192.0,0.39988741]
[1763368391655,0.50787,3192.4,3192.0,0.39988741]
[1763368391854,0.6552,3192.1,3192.0,0.64508741]
[1763368392055,3.863,3192.1,3192.0,0.00268741]
[1763368394151,0.6552,3192.1,3192.0,0.00268741]
[1763368394657,0.51256822,3192.4,3192.0,1.04228741]
[1763368395259,0.6552,3192.1,3192.0,1.04228741]
[1763368395461,0.6552,3192.1,3192.0,0.00268741]
[1763368395662,0.6552,3192.1,3192.0,0.64508741]
[1763368395958,0.50789,3192.3,3192.0,1.04228741]
[1763368397064,0.6552,3192.1,3192.0,0.00268741]
[1763368397561,0.6552,3192.1,3192.0,0.63998741]
[1763368397757,1.16311,3192.1,3192.0,0.00268741]
[1763368398163,0.6552,3192.1,3192.0,0.00268741]
[1763368398353,0.66479822,3192.4,3192.3,0.6373]
[1763368398566,1.46200227,3192.4,3192.3,0.6373]
[1763368398769,1.96987227,3192.4,3192.3,0.6373]
[1763368398964,0.50789,3192.3,3192.0,0.38988741]
[1763368399362,0.6912,3192.1,3192.0,1.54331741]
[1763368401768,0.6912,3192.1,3192.0,1.15611741]
[1763368401962,1.19911,3192.1,3192.0,0.64818741]
[1763368402162,1.19911,3192.1,3192.0,0.00268741]
[1763368402362,1.99744191,3192.1,3192.0,0.00268741]
[1763368403470,0.79833191,3192.1,3192.0,1.04248741]
[1763368403767,0.6912,3192.1,3192.0,1.04248741]
[1763368403967,1.49015891,3192.1,3192.0,1.04248741]
[1763368404170,0.79895891,3192.1,3192.0,1.04248741]
[1763368404362,3.21249822,3192.4,3192.0,1.04248741]
[1763368404363,3.90369822,3192.4,3192.3,0.6455]
[1763368404563,4.70303801,3192.4,3192.3,0.6455]
[1763368404764,4.70303801,3192.4,3192.0,0.39698741]
[1763368405072,1.49053979,3192.3,3192.2,0.6455]
[1763368406373,0.79933979,3192.3,3192.2,0.6455]
[1763368407070,1.49053979,3192.3,3192.2,0.6455]
[1763368407374,1.49053979,3192.3,3192.0,0.39698741]
[1763368407375,0.6912,3192.1,3192.0,0.00268741]
[1763368407670,1.49053979,3192.1,3192.0,0.00268741]
[1763368409679,0.79933979,3192.1,3192.0,1.04248741]
[1763368409877,1.49053979,3192.1,3192.0,1.04248741]
[1763368410781,1.49053979,3192.1,3192.0,0.64818741]
[1763368411779,1.99844979,3192.1,3192.0,0.64818741]
[1763368411983,1.49053979,3192.1,3192.0,0.00268741]
[1763368412881,3.1094481,3192.1,3192.0,0.00268741]
[1763368413087,3.1094481,3192.1,3191.4,0.24853891]
[1763368413088,0.6912,3191.5,3191.4,0.89403891]
[1763368413289,1.49053979,3191.5,3191.4,0.89403891]
[1763368413987,1.49053979,3191.5,3191.4,0.24853891]
[1763368414184,1.49053979,3191.5,3191.4,0.64853901]
[1763368414486,0.79933979,3191.5,3191.4,0.64853901]
[1763368414685,1.49053979,3191.5,3191.4,0.00303901]
[1763368414886,1.49053979,3191.5,3191.4,0.64853901]
[1763368415087,1.49053979,3191.5,3191.4,0.90303002]
[1763368415288,1.49053979,3191.5,3190.5,3.605]
[1763368415289,0.50804,3191.4,3190.5,3.605]
[1763368415584,0.50806,3191.2,3190.5,3.85690109]
[1763368415791,0.79933979,3191.1,3191.0,1.0398]
[1763368415988,2.31784504,3191.8,3191.0,3.6021]
[1763368416187,1.11867504,3191.6,3191.0,3.6021]
[1763368416391,1.48910893,3191.5,3191.4,0.6455]
[1763368416888,2.60778397,3191.5,3191.4,0.6455]
[1763368418585,1.91658397,3191.5,3191.4,0.6455]
[1763368418793,1.91658397,3191.5,3191.4,0.65578881]
[1763368419184,2.60778397,3191.5,3191.4,0.65578881]
[1763368419589,2.60778397,3191.5,3191.4,0.01028881]
[1763368420092,2.60778397,3191.5,3191.4,0.65578881]
[1763368421391,1.48910893,3191.5,3191.4,0.65578881]
[1763368423089,1.48910893,3191.5,3191.4,0.01028881]
[1763368423493,1.88720893,3191.5,3191.4,0.01028881]
[1763368423698,4.07250839,3191.5,3191.4,0.01028881]
[1763368423898,2.39521893,3191.5,3191.4,0.01028881]
[1763368425295,3.51442026,3191.5,3191.4,0.01028881]
[1763368429391,0.50813,3190.8,3190.2,3.2078]
[1763368429591,0.78950109,3190.7,3190.2,3.2078]
[1763368429798,1.43830109,3190.7,3190.6,0.6459]
[1763368430504,1.43830109,3190.7,3190.6,0.6491624]
[1763368431199,0.00469822,3190.8,3190.7,0.6459]
[1763368437800,0.65349822,3190.8,3190.7,0.6459]
[1763368439697,0.00469822,3190.8,3190.7,0.6459]
[1763368439899,0.65349822,3190.8,3190.7,0.6459]
[1763368440299,0.65349822,3190.8,3187.5,8.98644194]
[1763368440300,0.6488,3189.9,3189.6,2.2488341]
[1763368440512,0.6488,3189.9,3189.8,0.6459]
[1763368440804,3.2078,3190.1,3190.0,0.9933]
[1763368441006,1.11920133,3190.7,3190.0,0.9933]
[1763368441206,0.78677884,3190.6,3190.0,0.3474]
[1763368441508,1.43557884,3190.5,3190.4,0.6459]
[1763368441701,0.78677884,3190.5,3190.4,0.6459]
[1763368441906,0.51281822,3190.8,3190.5,0.3474]
[1763368442103,0.6488,3190.6,3190.0,0.35030598]
[1763368442303,1.43550472,3190.5,3190.4,0.6459]
[1763368442500,1.43550472,3190.5,3190.0,0.35030598]
[1763368442501,0.6488,3190.1,3190.0,0.00290598]
[1763368442996,1.43522448,3190.1,3190.0,0.00290598]
[1763368443804,0.78642448,3190.1,3190.0,0.99620598]
[1763368444105,0.50814,3190.7,3190.2,0.6459]
[1763368444298,0.6488,3190.3,3190.0,3.21070598]
[1763368444504,0.6488,3190.3,3190.0,3.55810598]
[1763368444715,0.6488,3190.3,3190.2,0.6459]
[1763368445210,3.21249822,3190.8,3190.2,0.6459]
[1763368445401,0.785745,3190.7,3190.2,0.6459]
[1763368446009,0.6488,3190.3,3190.2,0.6459]
[1763368448705,0.6488,3190.1,3190.0,3.21070598]
[1763368448909,0.6488,3190.1,3190.0,3.85660598]
[1763368449110,0.6488,3190.4,3190.0,3.55810598]
[1763368449307,4.36942822,3190.8,3190.0,3.55810598]
[1763368449612,1.43434622,3190.7,3190.6,0.6459]
[1763368449811,1.43434622,3190.7,3190.0,3.55810598]
[1763368450112,0.78554622,3190.6,3190.0,3.55810598]
[1763368450416,0.6488,3190.1,3190.0,3.21070598]
[1763368450710,0.6488,3190.1,3189.5,0.3474]
[1763368450711,3.99317736,3190.1,3189.5,0.3474]
[1763368451016,1.11699224,3190.1,3190.0,0.3474]
[1763368451308,5.11004768,3190.1,3190.0,0.3474]
[1763368451502,5.11004768,3190.1,3190.0,0.35038328]
[1763368452505,3.99305544,3190.1,3190.0,0.35038328]
[1763368453216,4.50128544,3190.1,3190.0,0.3474]
[1763368454214,4.50128544,3190.1,3190.0,0.3513597]
[1763368456307,3.99305544,3190.1,3190.0,0.9972597]
[1763368465619,4.50128544,3190.1,3190.0,0.9972597]
[1763368469018,4.50128544,3190.1,3190.0,0.3513597]
[1763368472324,1.29348544,3190.1,3190.0,0.3513597]
[1763368472621,4.50128544,3190.1,3190.0,0.3513597]
[1763368473228,0.50829,3189.8,3189.5,0.3474]
[1763368473417,5.11004768,3190.1,3189.5,0.3474]
[1763368473418,3.2078,3189.6,3189.5,1.011]
[1763368473612,3.99305544,3189.6,3189.5,1.011]
[1763368473819,4.50136544,3189.6,3189.5,1.011]
[1763368474220,4.50136544,3189.6,3189.5,1.01441793]
[1763368476521,3.99305544,3189.6,3189.5,1.01441793]
[1763368476922,4.50136544,3189.6,3189.5,1.01441793]
[1763368480828,3.99305544,3189.6,3189.5,1.01441793]
[1763368481032,4.88331665,3190.4,3190.3,0.6636]
[1763368481218,1.76729224,3190.9,3190.0,3.5767]
[1763368481418,0.6503,3190.7,3190.0,3.5767]
[1763368481922,0.3854,3191.0,3190.6,0.6636]
[1763368482125,0.3854,3191.0,3190.0,3.5767]
[1763368482126,1.0357,3191.0,3190.9,0.6636]
[1763368482524,1.0357,3191.0,3190.6,0.00469822]
[1763368483017,0.3854,3191.0,3190.6,0.00469822]
[1763368483420,1.0357,3191.0,3190.9,0.6636]
[1763368483625,0.6503,3191.0,3190.9,0.6636]
[1763368483833,1.0357,3191.0,3190.9,0.6636]
[1763368484830,0.6503,3191.0,3190.9,0.6636]
[1763368486726,0.6503,3190.7,3190.6,3.87609822]
[1763368489936,0.6503,3190.7,3190.6,0.66829822]
[1763368493443,1.15844,3190.7,3190.6,0.00469822]
[1763368496138,3.2078,3191.1,3191.0,0.6236]
[1763368496431,0.6591,3190.7,3190.6,0.62829822]
[1763368499649,3.2078,3191.1,3191.0,1.0348]
[1763368499940,3.8669,3191.1,3191.0,0.6236]
[1763368501841,0.6591,3190.7,3190.6,0.62829822]
[1763368502042,1.58959,3191.0,3190.9,0.6236]
[1763368502542,3.8669,3191.1,3191.0,0.6236]
[1763368503832,3.2078,3191.1,3191.0,1.0348]
[1763368504037,0.00469822,3191.3,3191.2,0.6236]
[1763368504732,0.66379822,3191.3,3191.2,0.6236]
[1763368505734,0.00469822,3191.3,3191.2,0.6236]
[1763368506139,0.4224,3192.0,3191.5,1.0178]
[1763368506344,0.6591,3191.6,3191.5,0.6236]
[1763368507044,0.66216539,3191.6,3191.5,0.6236]
[1763368509046,0.00306539,3191.6,3191.5,0.6236]
[1763368513943,0.66216539,3191.6,3191.5,0.6236]
[1763368520652,0.5883,3191.4,3191.3,3.2078]
[1763368520848,0.5883,3191.4,3190.6,0.00469822]
[1763368520849,0.9463,3191.0,3190.9,0.6398]
[1763368521051,0.5883,3190.7,3190.6,0.64449822]
[1763368523662,0.358,3191.0,3190.6,0.64449822]
[1763368525057,3.7961,3191.4,3191.3,0.6398]
[1763368525352,4.57118203,3191.4,3190.6,0.00469822]
[1763368525553,0.77508203,3191.3,3190.6,0.00469822]
[1763368527753,1.28312203,3191.3,3190.6,0.00469822]
[1763368527952,0.50804,3191.3,3190.6,0.00469822]
[1763368528961,3.7961,3191.4,3191.3,0.6398]
[1763368529256,4.57177582,3191.4,3191.3,0.6398]
[1763368529463,4.57177582,3191.4,3190.6,0.00469822]
[1763368529660,0.77567582,3191.3,3190.8,3.2078]
[1763368529960,1.36397582,3191.3,3191.2,0.6398]
[1763368530261,1.36397582,3191.3,3190.8,3.2078]
[1763368530462,0.5883,3191.3,3190.8,3.2078]
[1763368537663,0.5883,3191.3,3190.6,0.00469822]
[1763368537963,0.5883,3191.3,3190.8,3.2078]
[1763368539268,0.77590802,3191.2,3190.8,3.2078]
[1763368539769,4.07381,3191.5,3190.8,3.2078]
[1763368539965,0.77620089,3191.4,3190.8,3.2078]
[1763368540270,1.28423089,3191.4,3190.8,3.2078]
[1763368540463,0.77620089,3191.3,3190.8,3.2078]